[Event "*** SCC Grand Prix: Titled Tuesday Blitz"]
[Site "Chess.com"]
[Date "2020.08.04"]
[Round "6"]
[White "Artem_Sadovsky"]
[Black "frederiksvane"]
[Result "0-1"]
[WhiteElo "2393"]
[BlackElo "2576"]
[TimeControl "180+1"]
[EndTime "14:50:44 PDT"]
[Termination "frederiksvane won on time"]

1. Nf3 {[%clk 0:02:47.2]} 1... Nf6 {[%clk 0:03:00]} 2. g3 {[%clk 0:02:47.1]}
2... g6 {[%clk 0:03:00.4]} 3. Bg2 {[%clk 0:02:46.9]} 3... Bg7 {[%clk 0:03:01.3]}
4. O-O {[%clk 0:02:47.6]} 4... O-O {[%clk 0:03:02.2]} 5. c4 {[%clk 0:02:47.9]}
5... c6 {[%clk 0:03:02.2]} 6. b3 {[%clk 0:02:48.3]} 6... d5 {[%clk 0:02:58.1]}
7. Bb2 {[%clk 0:02:48.3]} 7... b6 {[%clk 0:02:56.5]} 8. d3 {[%clk 0:02:46.3]}
8... Bb7 {[%clk 0:02:56.6]} 9. Nbd2 {[%clk 0:02:46.7]} 9... Nbd7 {[%clk
0:02:56.5]} 10. Qc2 {[%clk 0:02:46.9]} 10... Re8 {[%clk 0:02:50.1]} 11. e4
{[%clk 0:02:45.1]} 11... e5 {[%clk 0:02:42.5]} 12. exd5 {[%clk 0:02:36.5]} 12...
cxd5 {[%clk 0:02:41.8]} 13. Rfe1 {[%clk 0:02:36.5]} 13... Qc7 {[%clk 0:02:20]}
14. Rac1 {[%clk 0:02:25.2]} 14... Rac8 {[%clk 0:02:18.3]} 15. Qb1 {[%clk
0:02:24]} 15... d4 {[%clk 0:02:18.5]} 16. b4 {[%clk 0:02:17]} 16... Bc6 {[%clk
0:01:43.2]} 17. Re2 {[%clk 0:01:41.8]} 17... a6 {[%clk 0:01:36.9]} 18. Rf1
{[%clk 0:01:40.1]} 18... Qb7 {[%clk 0:01:33.3]} 19. Rfe1 {[%clk 0:01:37.8]}
19... Bh6 {[%clk 0:01:24.5]} 20. Qd1 {[%clk 0:01:11.2]} 20... b5 {[%clk
0:01:23.8]} 21. a3 {[%clk 0:00:57]} 21... bxc4 {[%clk 0:01:15.8]} 22. Nxc4
{[%clk 0:00:54.8]} 22... Bxf3 {[%clk 0:01:13.4]} 23. Bxf3 {[%clk 0:00:43.1]}
23... Qxf3 {[%clk 0:01:11.1]} 24. Nxe5 {[%clk 0:00:38.9]} 24... Rxe5 {[%clk
0:01:04.8]} 25. Bxd4 {[%clk 0:00:18.4]} 25... Rxe2 {[%clk 0:01:01.2]} 26. Qxe2
{[%clk 0:00:19.3]} 26... Qxe2 {[%clk 0:00:55.9]} 27. Rxe2 {[%clk 0:00:20.2]}
27... Nd5 {[%clk 0:00:53.2]} 28. Kg2 {[%clk 0:00:17.9]} 28... Bg7 {[%clk
0:00:52.7]} 29. Re4 {[%clk 0:00:14.8]} 29... Bxd4 {[%clk 0:00:51.8]} 30. Rxd4
{[%clk 0:00:15.7]} 30... N7b6 {[%clk 0:00:52.1]} 31. a4 {[%clk 0:00:14.8]} 31...
Ne7 {[%clk 0:00:37.3]} 32. a5 {[%clk 0:00:14.3]} 32... Nbd5 {[%clk 0:00:37.3]}
33. Kf3 {[%clk 0:00:07.6]} 33... Rb8 {[%clk 0:00:37.3]} 34. Rc4 {[%clk
0:00:06.9]} 34... Rxb4 {[%clk 0:00:36]} 35. Rc5 {[%clk 0:00:06.9]} 35... Kg7
{[%clk 0:00:32]} 36. h4 {[%clk 0:00:05.1]} 36... h5 {[%clk 0:00:30.5]} 37. Rc4
{[%clk 0:00:01.2]} 37... Rxc4 {[%clk 0:00:29.2]} 38. dxc4 {[%clk 0:00:02.1]}
38... Nb4 {[%clk 0:00:29.2]} 39. Ke4 {[%clk 0:00:02.7]} 39... Nbc6 {[%clk
0:00:29.3]} 0-1

[Event "*** SCC Grand Prix: Titled Tuesday Blitz"]
[Site "Chess.com"]
[Date "2020.08.04"]
[Round "6"]
[White "Semen_Khanin"]
[Black "penguingm1"]
[Result "0-1"]
[WhiteElo "2784"]
[BlackElo "2952"]
[TimeControl "180+1"]
[EndTime "14:50:46 PDT"]
[Termination "penguingm1 won on time"]

1. e4 {[%clk 0:03:00.9]} 1... e5 {[%clk 0:02:57.2]} 2. Nf3 {[%clk 0:03:01]} 2...
Nc6 {[%clk 0:02:57.3]} 3. Bb5 {[%clk 0:02:58.8]} 3... g6 {[%clk 0:02:57.2]} 4.
d4 {[%clk 0:02:56.7]} 4... exd4 {[%clk 0:02:53.8]} 5. Bxc6 {[%clk 0:02:56.6]}
5... dxc6 {[%clk 0:02:52.1]} 6. Qxd4 {[%clk 0:02:56.3]} 6... Qxd4 {[%clk
0:02:50.6]} 7. Nxd4 {[%clk 0:02:56.3]} 7... Bg7 {[%clk 0:02:50.8]} 8. Be3 {[%clk
0:02:54.1]} 8... b6 {[%clk 0:02:35.4]} 9. Nc3 {[%clk 0:02:50.4]} 9... Ne7 {[%clk
0:02:31]} 10. O-O-O {[%clk 0:02:49.1]} 10... Bb7 {[%clk 0:01:57.3]} 11. h4
{[%clk 0:02:33.4]} 11... O-O-O {[%clk 0:01:50.3]} 12. h5 {[%clk 0:02:33.7]}
12... c5 {[%clk 0:01:49.7]} 13. Nde2 {[%clk 0:02:33.3]} 13... f5 {[%clk
0:01:39.9]} 14. Rxd8+ {[%clk 0:02:27.3]} 14... Rxd8 {[%clk 0:01:35.7]} 15. Bg5
{[%clk 0:02:20.8]} 15... Re8 {[%clk 0:01:30.2]} 16. hxg6 {[%clk 0:02:16.4]}
16... hxg6 {[%clk 0:01:05.6]} 17. Rh7 {[%clk 0:02:16.3]} 17... Bf8 {[%clk
0:01:04.2]} 18. Nf4 {[%clk 0:02:15.6]} 18... Bxe4 {[%clk 0:00:48.6]} 19. f3
{[%clk 0:01:34.6]} 19... Bc6 {[%clk 0:00:25.6]} 20. Ne6 {[%clk 0:01:31.5]} 20...
Nd5 {[%clk 0:00:25.4]} 21. Nxd5 {[%clk 0:00:54.7]} 21... Rxe6 {[%clk 0:00:25.3]}
22. Nxc7 {[%clk 0:00:37.9]} 22... Re2 {[%clk 0:00:24.8]} 23. Bf4 {[%clk
0:00:33.9]} 23... g5 {[%clk 0:00:12.5]} 24. Bxg5 {[%clk 0:00:24.8]} 24... Bd6
{[%clk 0:00:12.5]} 25. Na6 {[%clk 0:00:21.8]} 25... Bb7 {[%clk 0:00:06.9]} 26.
Rh8+ {[%clk 0:00:18.6]} 26... Kd7 {[%clk 0:00:07.1]} 27. Nb8+ {[%clk 0:00:18.4]}
27... Kc7 {[%clk 0:00:07.6]} 28. a4 {[%clk 0:00:07.3]} 28... Rxg2 {[%clk
0:00:07.5]} 29. f4 {[%clk 0:00:04.6]} 29... Bf3 {[%clk 0:00:05.7]} 30. a5 {[%clk
0:00:02.9]} 30... bxa5 {[%clk 0:00:05.7]} 31. Na6+ {[%clk 0:00:02.1]} 31... Kb7
{[%clk 0:00:04.9]} 32. Rh7+ {[%clk 0:00:01.7]} 32... Kc6 {[%clk 0:00:04]} 33.
Rh6 {[%clk 0:00:01.6]} 33... Kd5 {[%clk 0:00:04.6]} 0-1

[Event "*** SCC Grand Prix: Titled Tuesday Blitz"]
[Site "Chess.com"]
[Date "2020.08.04"]
[Round "6"]
[White "Caterpiller35"]
[Black "binbin239"]
[Result "0-1"]
[WhiteElo "2373"]
[BlackElo "2539"]
[TimeControl "180+1"]
[EndTime "14:50:46 PDT"]
[Termination "binbin239 won by resignation"]

1. d4 {[%clk 0:03:00.9]} 1... Nf6 {[%clk 0:02:59.6]} 2. Bg5 {[%clk 0:03:01.3]}
2... Ne4 {[%clk 0:02:59.2]} 3. Bf4 {[%clk 0:03:00.6]} 3... c5 {[%clk 0:02:59.3]}
4. f3 {[%clk 0:03:00.8]} 4... Qa5+ {[%clk 0:02:59.1]} 5. c3 {[%clk 0:03:00.3]}
5... Nf6 {[%clk 0:02:58.7]} 6. Nd2 {[%clk 0:03:01.2]} 6... cxd4 {[%clk
0:02:58.6]} 7. Nb3 {[%clk 0:03:01.7]} 7... Qd8 {[%clk 0:02:57.7]} 8. cxd4 {[%clk
0:03:01.1]} 8... e6 {[%clk 0:02:57.9]} 9. e3 {[%clk 0:03:00.8]} 9... Be7 {[%clk
0:02:55.4]} 10. Rc1 {[%clk 0:03:00.8]} 10... Nc6 {[%clk 0:02:51.7]} 11. g4
{[%clk 0:03:00.5]} 11... Nd5 {[%clk 0:02:49.7]} 12. Ne2 {[%clk 0:02:51.8]} 12...
g5 {[%clk 0:02:33.4]} 13. Be5 {[%clk 0:02:48.7]} 13... Nxe5 {[%clk 0:02:29.7]}
14. dxe5 {[%clk 0:02:49.6]} 14... Nxe3 {[%clk 0:02:29.6]} 15. Qd3 {[%clk
0:02:46.3]} 15... Nd5 {[%clk 0:02:18.3]} 16. h4 {[%clk 0:02:38.3]} 16... b6
{[%clk 0:02:13.2]} 17. Nbd4 {[%clk 0:02:24]} 17... Nb4 {[%clk 0:02:07.2]} 18.
Qe4 {[%clk 0:02:15.7]} 18... Ba6 {[%clk 0:02:04]} 19. Nc3 {[%clk 0:02:13.3]}
19... Bxf1 {[%clk 0:01:57.9]} 20. Kxf1 {[%clk 0:02:14.2]} 20... gxh4 {[%clk
0:01:53.2]} 21. a3 {[%clk 0:02:09.4]} 21... Na6 {[%clk 0:01:48.2]} 22. b4 {[%clk
0:02:08.2]} 22... Rc8 {[%clk 0:01:46.2]} 23. Kg2 {[%clk 0:02:06.3]} 23... d5
{[%clk 0:01:41.6]} 24. exd6 {[%clk 0:02:02.7]} 24... Qxd6 {[%clk 0:01:41]} 25.
f4 {[%clk 0:01:56]} 25... Rg8 {[%clk 0:01:31.9]} 26. Kf3 {[%clk 0:01:42.5]}
26... h5 {[%clk 0:01:25.9]} 27. g5 {[%clk 0:01:36.8]} 27... Nc7 {[%clk
0:01:08.9]} 28. Ncb5 {[%clk 0:01:21.9]} 28... Qd7 {[%clk 0:01:07]} 29. Nxa7
{[%clk 0:01:16.3]} 29... Rd8 {[%clk 0:01:02.9]} 30. Nac6 {[%clk 0:01:14.6]}
30... Rc8 {[%clk 0:00:59.5]} 31. Rhd1 {[%clk 0:01:14.1]} 31... Nd5 {[%clk
0:00:58.4]} 32. Nb5 {[%clk 0:01:05.5]} 32... Rxc6 {[%clk 0:00:56.5]} 33. Nd4
{[%clk 0:00:51.1]} 33... Rc8 {[%clk 0:00:47.7]} 34. b5 {[%clk 0:00:45]} 34...
Nc3 {[%clk 0:00:46.6]} 35. Qh7 {[%clk 0:00:38.3]} 35... Rf8 {[%clk 0:00:42.3]}
36. Rd3 {[%clk 0:00:31.5]} 36... Qd5+ {[%clk 0:00:37.3]} 37. Kf2 {[%clk
0:00:31.7]} 37... Ne4+ {[%clk 0:00:36.7]} 38. Qxe4 {[%clk 0:00:31.9]} 38... Qxe4
{[%clk 0:00:33.7]} 39. Rxc8+ {[%clk 0:00:30.7]} 39... Kd7 {[%clk 0:00:33.6]} 40.
Rcc3 {[%clk 0:00:18.2]} 40... Bc5 {[%clk 0:00:33.2]} 41. Rxc5 {[%clk 0:00:11]}
41... bxc5 {[%clk 0:00:32.2]} 42. Nb3+ {[%clk 0:00:11.8]} 42... Kc7 {[%clk
0:00:28]} 43. Nxc5 {[%clk 0:00:10.5]} 43... Qxf4+ {[%clk 0:00:28]} 44. Ke2
{[%clk 0:00:10.7]} 44... Qe5+ {[%clk 0:00:27.9]} 0-1

[Event "*** SCC Grand Prix: Titled Tuesday Blitz"]
[Site "Chess.com"]
[Date "2020.08.04"]
[Round "6"]
[White "XiaoKangZhong"]
[Black "creativity"]
[Result "1-0"]
[WhiteElo "2406"]
[BlackElo "2028"]
[TimeControl "180+1"]
[EndTime "14:50:46 PDT"]
[Termination "XiaoKangZhong won on time"]

1. e4 {[%clk 0:03:00.9]} 1... e5 {[%clk 0:02:56.3]} 2. Nf3 {[%clk 0:03:00.3]}
2... Nc6 {[%clk 0:02:55.6]} 3. Bc4 {[%clk 0:03:00.7]} 3... Nf6 {[%clk
0:02:55.1]} 4. d3 {[%clk 0:03:00.8]} 4... Be7 {[%clk 0:02:54.6]} 5. O-O {[%clk
0:03:00.6]} 5... d6 {[%clk 0:02:54.4]} 6. Nbd2 {[%clk 0:03:00.6]} 6... O-O
{[%clk 0:02:54]} 7. Re1 {[%clk 0:03:00.8]} 7... h6 {[%clk 0:02:52.2]} 8. a4
{[%clk 0:03:01.4]} 8... a5 {[%clk 0:02:50.6]} 9. Nf1 {[%clk 0:03:01.8]} 9... Nh7
{[%clk 0:02:49]} 10. Ng3 {[%clk 0:03:01.2]} 10... Ng5 {[%clk 0:02:48.7]} 11.
Nxg5 {[%clk 0:02:58.7]} 11... Bxg5 {[%clk 0:02:48.3]} 12. Qh5 {[%clk 0:02:58.4]}
12... Nd4 {[%clk 0:02:35.8]} 13. Bxg5 {[%clk 0:02:45.9]} 13... Qxg5 {[%clk
0:02:33.3]} 14. Qxg5 {[%clk 0:02:46]} 14... hxg5 {[%clk 0:02:32.9]} 15. Rac1
{[%clk 0:02:46.5]} 15... g6 {[%clk 0:02:28.4]} 16. c3 {[%clk 0:02:44]} 16... Nc6
{[%clk 0:02:20.7]} 17. Nf1 {[%clk 0:02:43.3]} 17... Kg7 {[%clk 0:02:17.6]} 18.
Ne3 {[%clk 0:02:43.8]} 18... Bd7 {[%clk 0:02:11]} 19. Nd5 {[%clk 0:02:43.4]}
19... Rac8 {[%clk 0:02:08.3]} 20. f3 {[%clk 0:02:38.6]} 20... b6 {[%clk
0:02:06.3]} 21. Ba6 {[%clk 0:02:36.6]} 21... Ra8 {[%clk 0:02:05.7]} 22. Bb5
{[%clk 0:02:30.1]} 22... Rac8 {[%clk 0:02:04.6]} 23. Bxc6 {[%clk 0:02:23.1]}
23... Bxc6 {[%clk 0:02:03.9]} 24. Ne7 {[%clk 0:02:23.7]} 24... Bd7 {[%clk
0:02:01]} 25. Nxc8 {[%clk 0:02:23.5]} 25... Rxc8 {[%clk 0:01:59.8]} 26. Ra1
{[%clk 0:02:22.7]} 26... g4 {[%clk 0:01:56.6]} 27. Kf2 {[%clk 0:02:22]} 27...
gxf3 {[%clk 0:01:56]} 28. gxf3 {[%clk 0:02:22.9]} 28... Rh8 {[%clk 0:01:55]} 29.
Rh1 {[%clk 0:02:22.5]} 29... Rh3 {[%clk 0:01:53.2]} 30. b4 {[%clk 0:02:21.1]}
30... f5 {[%clk 0:01:47.3]} 31. b5 {[%clk 0:02:20.8]} 31... fxe4 {[%clk
0:01:39.1]} 32. dxe4 {[%clk 0:02:21.7]} 32... Kf6 {[%clk 0:01:31.1]} 33. Rag1
{[%clk 0:02:20.6]} 33... Be6 {[%clk 0:01:29.8]} 34. Rg3 {[%clk 0:02:21]} 34...
Rh4 {[%clk 0:01:27.3]} 35. Kg2 {[%clk 0:02:10.9]} 35... d5 {[%clk 0:01:19.2]}
36. exd5 {[%clk 0:01:45.6]} 36... Bxd5 {[%clk 0:01:18.3]} 37. Rd1 {[%clk
0:01:46.3]} 37... Be6 {[%clk 0:01:15.2]} 38. Ra1 {[%clk 0:01:36.1]} 38... Bb3
{[%clk 0:01:07.2]} 39. Rg4 {[%clk 0:01:35.5]} 39... Rh7 {[%clk 0:01:03.6]} 40.
Rb1 {[%clk 0:01:35]} 40... Bc2 {[%clk 0:00:59.7]} 41. Rc1 {[%clk 0:01:33.3]}
41... Bf5 {[%clk 0:00:59.2]} 42. Rg3 {[%clk 0:01:33.6]} 42... Rd7 {[%clk
0:00:58.5]} 43. Kf1 {[%clk 0:01:26.4]} 43... Rd2 {[%clk 0:00:52.7]} 44. h4
{[%clk 0:01:26.1]} 44... Ra2 {[%clk 0:00:47.5]} 45. c4 {[%clk 0:01:23.5]} 45...
Rxa4 {[%clk 0:00:46]} 46. c5 {[%clk 0:01:24.1]} 46... Bd3+ {[%clk 0:00:35.1]}
47. Kf2 {[%clk 0:01:23.8]} 47... Bxb5 {[%clk 0:00:34.7]} 48. cxb6 {[%clk
0:01:24.3]} 48... cxb6 {[%clk 0:00:34.5]} 49. Rc7 {[%clk 0:01:24.8]} 49... Rxh4
{[%clk 0:00:32.4]} 50. Rb7 {[%clk 0:01:24.2]} 50... Bc4 {[%clk 0:00:22.8]} 51.
Rxb6+ {[%clk 0:01:24.1]} 51... Kf5 {[%clk 0:00:20.6]} 52. Ke3 {[%clk 0:01:20.8]}
52... a4 {[%clk 0:00:19.8]} 53. Rb4 {[%clk 0:01:19.5]} 53... g5 {[%clk 0:00:14]}
54. Rxa4 {[%clk 0:01:18.3]} 54... Rd4 {[%clk 0:00:04.6]} 55. Rg2 {[%clk
0:01:12.8]} 55... Bd5 {[%clk 0:00:02.5]} 56. Rg4 {[%clk 0:01:03.5]} 56... Rxa4
{[%clk 0:00:01.5]} 57. Rxa4 {[%clk 0:01:03.2]} 1-0

[Event "*** SCC Grand Prix: Titled Tuesday Blitz"]
[Site "Chess.com"]
[Date "2020.08.04"]
[Round "6"]
[White "superchess02"]
[Black "bratkoo"]
[Result "1-0"]
[WhiteElo "2719"]
[BlackElo "2504"]
[TimeControl "180+1"]
[EndTime "14:50:48 PDT"]
[Termination "superchess02 won by resignation"]

1. e4 {[%clk 0:03:00.9]} 1... g6 {[%clk 0:02:53.9]} 2. d4 {[%clk 0:03:00.4]}
2... Bg7 {[%clk 0:02:54.1]} 3. c4 {[%clk 0:03:01.3]} 3... d6 {[%clk 0:02:53.4]}
4. Nf3 {[%clk 0:03:01]} 4... Nf6 {[%clk 0:02:53.6]} 5. Nc3 {[%clk 0:03:00.5]}
5... c5 {[%clk 0:02:53.8]} 6. Be2 {[%clk 0:03:01.4]} 6... Nc6 {[%clk 0:02:51.9]}
7. d5 {[%clk 0:03:00.8]} 7... Nb8 {[%clk 0:02:49.2]} 8. O-O {[%clk 0:02:58]}
8... O-O {[%clk 0:02:49.3]} 9. Rb1 {[%clk 0:02:53]} 9... a6 {[%clk 0:02:46.6]}
10. a3 {[%clk 0:02:52.5]} 10... e5 {[%clk 0:02:37.2]} 11. b4 {[%clk 0:02:51]}
11... Nbd7 {[%clk 0:02:31.8]} 12. Ne1 {[%clk 0:02:51.2]} 12... Ne8 {[%clk
0:02:30.4]} 13. Nd3 {[%clk 0:02:48.2]} 13... f5 {[%clk 0:02:28.1]} 14. Qb3
{[%clk 0:02:45.4]} 14... Nef6 {[%clk 0:02:24.1]} 15. f3 {[%clk 0:02:37.6]} 15...
Rf7 {[%clk 0:02:12.6]} 16. a4 {[%clk 0:02:37.7]} 16... Bf8 {[%clk 0:02:03.5]}
17. Ba3 {[%clk 0:02:35.5]} 17... Nh5 {[%clk 0:02:00.4]} 18. a5 {[%clk
0:02:30.9]} 18... Qh4 {[%clk 0:01:56.2]} 19. Qd1 {[%clk 0:02:27]} 19... Ndf6
{[%clk 0:01:49.8]} 20. Qe1 {[%clk 0:02:26.3]} 20... Qg5 {[%clk 0:01:43.5]} 21.
Bc1 {[%clk 0:02:24.5]} 21... Nf4 {[%clk 0:01:35.5]} 22. Nxf4 {[%clk 0:02:20.7]}
22... exf4 {[%clk 0:01:35.1]} 23. bxc5 {[%clk 0:02:21.6]} 23... dxc5 {[%clk
0:01:34.5]} 24. e5 {[%clk 0:02:21.2]} 24... Nh5 {[%clk 0:01:25.3]} 25. e6 {[%clk
0:02:20.7]} 25... Rc7 {[%clk 0:01:23.8]} 26. Bd3 {[%clk 0:02:16.9]} 26... Bg7
{[%clk 0:01:21.6]} 27. Ne2 {[%clk 0:02:17.2]} 27... Be5 {[%clk 0:01:15.6]} 28.
Bb2 {[%clk 0:02:13.9]} 28... Bd6 {[%clk 0:01:15.8]} 29. Qc3 {[%clk 0:02:12.2]}
29... Ng7 {[%clk 0:01:15.1]} 30. Rbe1 {[%clk 0:02:03.4]} 30... Re7 {[%clk
0:01:15.1]} 31. Qf6 {[%clk 0:01:59.2]} 31... Qxf6 {[%clk 0:01:10.8]} 32. Bxf6
{[%clk 0:02:00.1]} 32... Re8 {[%clk 0:01:11.2]} 33. Nc3 {[%clk 0:01:57.3]} 33...
Nxe6 {[%clk 0:01:01.6]} 34. dxe6 {[%clk 0:01:55.4]} 34... Rxe6 {[%clk
0:01:01.9]} 35. Nd5 {[%clk 0:01:52.1]} 35... Kf7 {[%clk 0:01:00.2]} 36. Bc3
{[%clk 0:01:52]} 36... Rb8 {[%clk 0:00:56.5]} 37. Nb6 {[%clk 0:01:45.7]} 37...
Rxe1 {[%clk 0:00:49.7]} 38. Rxe1 {[%clk 0:01:46.6]} 38... Be6 {[%clk 0:00:50.2]}
39. Be5 {[%clk 0:01:47.1]} 39... Rd8 {[%clk 0:00:49.9]} 40. Bxd6 {[%clk
0:01:43.3]} 40... Rxd6 {[%clk 0:00:50.6]} 41. Bf1 {[%clk 0:01:43.6]} 41... Rd2
{[%clk 0:00:50.5]} 42. Re5 {[%clk 0:01:43]} 42... Ke7 {[%clk 0:00:42.2]} 43. Re2
{[%clk 0:01:42.4]} 43... Rd1 {[%clk 0:00:41.4]} 44. Kf2 {[%clk 0:01:39.3]} 44...
Kd6 {[%clk 0:00:41.3]} 45. Re1 {[%clk 0:01:26.5]} 45... Rd2+ {[%clk 0:00:40.8]}
46. Be2 {[%clk 0:01:26.3]} 46... Ra2 {[%clk 0:00:39.5]} 47. Rd1+ {[%clk
0:01:26.1]} 47... Kc6 {[%clk 0:00:30.9]} 48. Nd5 {[%clk 0:01:26.1]} 48... Rxa5
{[%clk 0:00:30.1]} 49. Nxf4 {[%clk 0:01:26.1]} 49... Bd7 {[%clk 0:00:28.3]} 50.
h4 {[%clk 0:01:20.9]} 50... Ra2 {[%clk 0:00:27.8]} 51. h5 {[%clk 0:01:19.3]}
51... g5 {[%clk 0:00:25.5]} 52. Nd5 {[%clk 0:01:19.7]} 52... Be6 {[%clk
0:00:24]} 53. h6 {[%clk 0:01:19.6]} 53... f4 {[%clk 0:00:22.2]} 54. Kf1 {[%clk
0:01:19.2]} 54... Rc2 {[%clk 0:00:18.8]} 55. Nf6 {[%clk 0:01:18.4]} 55... Bxc4
{[%clk 0:00:18.3]} 56. Bxc4 {[%clk 0:01:18.4]} 56... Rxc4 {[%clk 0:00:19]} 57.
Nxh7 {[%clk 0:01:19]} 57... Rc3 {[%clk 0:00:18.3]} 58. Nxg5 {[%clk 0:01:18.6]}
58... Re3 {[%clk 0:00:19]} 59. h7 {[%clk 0:01:18.1]} 59... Re8 {[%clk
0:00:19.9]} 60. Nf7 {[%clk 0:01:18.7]} 60... Rf8 {[%clk 0:00:20.3]} 61. Rd8
{[%clk 0:01:18.2]} 61... Rxf7 {[%clk 0:00:21.2]} 62. h8=Q {[%clk 0:01:18.3]}
62... Rc7 {[%clk 0:00:20.4]} 63. Qf6+ {[%clk 0:01:17.5]} 63... Kb5 {[%clk
0:00:21.2]} 64. Qxf4 {[%clk 0:01:17.8]} 64... c4 {[%clk 0:00:21.6]} 65. Qxc7
{[%clk 0:01:17]} 65... c3 {[%clk 0:00:21.4]} 1-0

[Event "*** SCC Grand Prix: Titled Tuesday Blitz"]
[Site "Chess.com"]
[Date "2020.08.04"]
[Round "6"]
[White "KarstenHansch"]
[Black "AbigailCabezas"]
[Result "1-0"]
[WhiteElo "2412"]
[BlackElo "1385"]
[TimeControl "180+1"]
[EndTime "14:50:56 PDT"]
[Termination "KarstenHansch won by checkmate"]

1. e4 {[%clk 0:03:00.9]} 1... e6 {[%clk 0:02:59.2]} 2. d4 {[%clk 0:02:59.9]}
2... d5 {[%clk 0:02:58.4]} 3. exd5 {[%clk 0:03:00.8]} 3... exd5 {[%clk
0:02:58.2]} 4. Nf3 {[%clk 0:03:01.4]} 4... Nf6 {[%clk 0:02:57.3]} 5. Bd3 {[%clk
0:03:01.1]} 5... Be7 {[%clk 0:02:51.6]} 6. O-O {[%clk 0:02:58.8]} 6... O-O
{[%clk 0:02:51.3]} 7. Bg5 {[%clk 0:02:58.3]} 7... h6 {[%clk 0:02:49.8]} 8. Bh4
{[%clk 0:02:56.4]} 8... Nfd7 {[%clk 0:02:27.5]} 9. Bxe7 {[%clk 0:02:54.7]} 9...
Qxe7 {[%clk 0:02:26.7]} 10. Re1 {[%clk 0:02:54.9]} 10... Qb4 {[%clk 0:02:25.1]}
11. Qc1 {[%clk 0:02:49.9]} 11... c5 {[%clk 0:02:18.2]} 12. c3 {[%clk 0:02:49.6]}
12... Qb6 {[%clk 0:02:17]} 13. dxc5 {[%clk 0:02:43]} 13... Nxc5 {[%clk
0:02:15.5]} 14. Bc2 {[%clk 0:02:43.1]} 14... Nc6 {[%clk 0:02:14]} 15. Nbd2
{[%clk 0:02:41.9]} 15... Bg4 {[%clk 0:02:10.7]} 16. Ne5 {[%clk 0:02:32.2]} 16...
Nxe5 {[%clk 0:02:08.1]} 17. Rxe5 {[%clk 0:02:33.1]} 17... Qd6 {[%clk 0:02:06.7]}
18. Re1 {[%clk 0:02:26.9]} 18... Rfe8 {[%clk 0:02:04.9]} 19. Nb3 {[%clk
0:02:24.7]} 19... Nxb3 {[%clk 0:01:53.5]} 20. Bxb3 {[%clk 0:02:22.6]} 20... Rad8
{[%clk 0:01:51.3]} 21. Qd2 {[%clk 0:02:06.3]} 21... d4 {[%clk 0:01:32.1]} 22.
Rxe8+ {[%clk 0:01:46.9]} 22... Rxe8 {[%clk 0:01:29.2]} 23. f3 {[%clk 0:01:46.2]}
23... Bh5 {[%clk 0:01:22.3]} 24. Qxd4 {[%clk 0:01:45.2]} 24... Qg6 {[%clk
0:01:16.2]} 25. Qf2 {[%clk 0:01:19.6]} 25... Qa6 {[%clk 0:00:53.4]} 26. Re1
{[%clk 0:01:16.4]} 26... Rd8 {[%clk 0:00:44.8]} 27. Qh4 {[%clk 0:01:00.5]} 27...
Qb6+ {[%clk 0:00:35.4]} 28. Qf2 {[%clk 0:00:54.8]} 28... Qxf2+ {[%clk
0:00:32.8]} 29. Kxf2 {[%clk 0:00:53.2]} 29... Rd2+ {[%clk 0:00:32.1]} 30. Re2
{[%clk 0:00:53.2]} 30... Rxe2+ {[%clk 0:00:32.2]} 31. Kxe2 {[%clk 0:00:53.3]}
31... Kf8 {[%clk 0:00:32.7]} 32. Ke3 {[%clk 0:00:52]} 32... Ke7 {[%clk
0:00:33.3]} 33. Kd4 {[%clk 0:00:52.3]} 33... Bg6 {[%clk 0:00:33.6]} 34. Bd5
{[%clk 0:00:48.4]} 34... b6 {[%clk 0:00:32.5]} 35. Be4 {[%clk 0:00:48.6]} 35...
Kd6 {[%clk 0:00:26.2]} 36. Bxg6 {[%clk 0:00:48.3]} 36... fxg6 {[%clk 0:00:25.8]}
37. a4 {[%clk 0:00:48.7]} 37... a6 {[%clk 0:00:23.4]} 38. b4 {[%clk 0:00:48.5]}
38... g5 {[%clk 0:00:23.3]} 39. c4 {[%clk 0:00:48.8]} 39... h5 {[%clk
0:00:20.2]} 40. g3 {[%clk 0:00:45.7]} 40... g6 {[%clk 0:00:19.1]} 41. h3 {[%clk
0:00:44.7]} 41... h4 {[%clk 0:00:17.5]} 42. g4 {[%clk 0:00:43.8]} 42... Kc6
{[%clk 0:00:13.8]} 43. Ke5 {[%clk 0:00:40.4]} 43... b5 {[%clk 0:00:13.5]} 44.
axb5+ {[%clk 0:00:40]} 44... axb5 {[%clk 0:00:13.7]} 45. c5 {[%clk 0:00:40.5]}
45... Kd7 {[%clk 0:00:13.1]} 46. Kf6 {[%clk 0:00:40.8]} 46... Ke8 {[%clk
0:00:12]} 47. Kxg6 {[%clk 0:00:40.4]} 47... Ke7 {[%clk 0:00:12.9]} 48. Kxg5
{[%clk 0:00:40.6]} 48... Ke6 {[%clk 0:00:13.8]} 49. f4 {[%clk 0:00:40.5]} 49...
Kd5 {[%clk 0:00:14.7]} 50. f5 {[%clk 0:00:41.4]} 50... Kc4 {[%clk 0:00:15.1]}
51. c6 {[%clk 0:00:41.4]} 51... Kxb4 {[%clk 0:00:16]} 52. c7 {[%clk 0:00:42.3]}
52... Ka3 {[%clk 0:00:16.4]} 53. c8=Q {[%clk 0:00:43.2]} 53... b4 {[%clk
0:00:16.7]} 54. f6 {[%clk 0:00:43.1]} 54... b3 {[%clk 0:00:17.6]} 55. f7 {[%clk
0:00:43.6]} 55... b2 {[%clk 0:00:18.5]} 56. f8=Q+ {[%clk 0:00:44]} 56... Ka2
{[%clk 0:00:18.8]} 57. Qa6+ {[%clk 0:00:43.9]} 57... Kb1 {[%clk 0:00:19]} 58.
Qff1+ {[%clk 0:00:43.8]} 58... Kc2 {[%clk 0:00:19]} 59. Qad3# {[%clk 0:00:43.9]}
1-0